bitfinex-derivatives/quotes_BTCF0:USTF0_20240925
["timestamp","ask_amount","ask_price","bid_price","bid_amount"]
[1727247533188,0.0036,63864.0,63860.0,0.078292]
[1727247533394,0.078288,63863.0,63861.0,0.18]
[1727247533695,0.078289,63862.0,63861.0,0.34405675]
[1727247534994,0.0036,63871.0,63861.0,0.34405675]
[1727247534995,0.0117516,63865.0,63861.0,0.34405675]
[1727247535285,0.0117516,63865.0,63862.0,0.109489]
[1727247535286,0.078287,63865.0,63862.0,0.109489]
[1727247535491,0.011,63863.0,63862.0,0.109489]
[1727247535893,0.011,63863.0,63862.0,0.28285924]
[1727247536491,0.078287,63864.0,63862.0,0.28285924]
[1727247536888,0.078287,63864.0,63863.0,0.078288]
[1727247537193,0.078287,63864.0,63862.0,0.17337024]
[1727247537194,0.078288,63863.0,63862.0,0.17337024]
[1727247537394,0.526376,63863.0,63862.0,0.001]
[1727247537595,0.526376,63863.0,63862.0,0.17541712]
[1727247539000,0.557676,63863.0,63862.0,0.17541712]
[1727247539397,0.548676,63863.0,63862.0,0.17441712]
[1727247539690,0.078303,63851.0,63850.0,0.0314]
[1727247539994,0.078303,63851.0,63850.0,0.19956831]
[1727247540701,0.078303,63851.0,63850.0,0.16816831]
[1727247541093,0.078303,63851.0,63850.0,0.003]
[1727247541598,0.078303,63851.0,63850.0,0.18302708]
[1727247544496,0.156606,63851.0,63850.0,0.18302708]
[1727247545489,0.16890155,63851.0,63850.0,0.18302708]
[1727247549000,0.52970155,63851.0,63850.0,0.18302708]
[1727247549204,0.57607679,63851.0,63850.0,0.18302708]
[1727247552201,0.52970155,63851.0,63850.0,0.18302708]
[1727247552596,0.16890155,63851.0,63850.0,0.18302708]
[1727247552802,0.52970155,63851.0,63850.0,0.18302708]
[1727247553513,0.59171386,63851.0,63850.0,0.18302708]
[1727247554599,0.52970155,63851.0,63850.0,0.18302708]
[1727247556695,0.60800455,63851.0,63850.0,0.18302708]
[1727247557309,0.63339563,63851.0,63850.0,0.18302708]
[1727247557615,0.52970155,63851.0,63850.0,0.18302708]
[1727247564416,0.45139855,63851.0,63850.0,0.18302708]
[1727247565527,0.5287622,63851.0,63850.0,0.18302708]
[1727247565833,0.45139855,63851.0,63850.0,0.18302708]
[1727247566727,0.47678783,63851.0,63850.0,0.18302708]
[1727247567019,0.45139855,63851.0,63850.0,0.18302708]
[1727247567219,0.47678658,63851.0,63850.0,0.18302708]
[1727247568823,0.47678649,63851.0,63850.0,0.18302708]
[1727247569228,0.56980495,63851.0,63850.0,0.18302708]
[1727247569623,0.47678649,63851.0,63850.0,0.18302708]
[1727247569933,0.11598649,63851.0,63850.0,0.18302708]
[1727247570531,0.11790957,63851.0,63850.0,0.18302708]
[1727247572831,0.09252163,63851.0,63850.0,0.18302708]
[1727247573035,0.17016494,63851.0,63850.0,0.18302708]
[1727247573624,0.53095886,63851.0,63850.0,0.18302708]
[1727247575037,0.47870958,63851.0,63850.0,0.18302708]
[1727247578128,0.55701258,63851.0,63850.0,0.18302708]
[1727247578334,0.55701258,63851.0,63850.0,0.003]
[1727247579236,0.65014399,63851.0,63850.0,0.003]
[1727247579544,0.55701258,63851.0,63850.0,0.003]
[1727247582541,0.65012733,63851.0,63850.0,0.003]
[1727247584345,0.65012733,63851.0,63838.0,0.07780305]
[1727247584346,0.078313,63843.0,63838.0,0.07780305]
[1727247584552,0.078313,63843.0,63838.0,0.0309]
[1727247584553,0.078318,63839.0,63838.0,0.0309]
[1727247584854,0.078318,63839.0,63838.0,0.20776488]
[1727247585446,0.08024108,63839.0,63838.0,0.20776488]
[1727247586739,0.08024108,63839.0,63838.0,0.22176488]
[1727247587453,0.08024108,63839.0,63838.0,0.20776488]
[1727247587646,0.08124108,63839.0,63838.0,0.22176488]
[1727247588151,0.0930514,63839.0,63838.0,0.22176488]
[1727247595154,0.0930514,63839.0,63838.0,0.30008388]
[1727247598156,0.0930514,63839.0,63838.0,0.22176488]
[1727247600459,0.23338733,63839.0,63838.0,0.22176488]
[1727247600767,0.1713694,63839.0,63838.0,0.22176488]
[1727247601573,0.24896271,63839.0,63838.0,0.22176488]
[1727247602250,0.1713694,63839.0,63838.0,0.22176488]
[1727247603462,1.90059659,63839.0,63838.0,0.014]
[1727247603660,1.96469659,63839.0,63838.0,0.014]
[1727247603968,1.87158462,63839.0,63838.0,0.014]
[1727247604165,1.96460479,63839.0,63838.0,0.014]
[1727247604469,0.078334,63826.0,63822.0,0.14020305]
[1727247604672,0.078334,63826.0,63823.0,0.04690305]
[1727247604889,0.078334,63826.0,63825.0,0.18071078]
[1727247605166,0.078334,63826.0,63822.0,0.0933]
[1727247605167,0.078334,63826.0,63824.0,0.18071078]
[1727247605564,0.078334,63826.0,63823.0,0.1758902]
[1727247605565,0.00192308,63825.0,63823.0,0.1758902]
[1727247605871,0.04650613,63824.0,63822.0,0.14020305]
[1727247606069,0.04650613,63824.0,63822.0,0.21854105]
[1727247606369,0.00192308,63825.0,63823.0,0.22279325]
[1727247606571,0.00192308,63824.0,63823.0,0.22279325]
[1727247607468,0.00192308,63824.0,63823.0,0.23479325]
[1727247607975,0.00192308,63824.0,63823.0,0.45884547]
[1727247608664,0.001,63825.0,63824.0,0.078336]
[1727247608971,0.06202094,63832.0,63824.0,0.65012275]
[1727247609160,0.078323,63835.0,63832.0,0.078326]
[1727247609473,0.078323,63835.0,63829.0,0.04691429]
[1727247609474,0.078323,63835.0,63834.0,0.18]
[1727247609665,0.078323,63835.0,63834.0,0.258324]
[1727247609868,0.09033638,63835.0,63834.0,0.42470981]
[1727247610063,0.06202094,63838.0,63834.0,0.42470981]
[1727247610064,0.06202094,63838.0,63836.0,0.078321]
[1727247610282,0.07832,63837.0,63836.0,0.078321]
[1727247610662,0.07832,63837.0,63836.0,0.25629683]
[1727247611690,0.01187272,63838.0,63837.0,0.07832]
[1727247611861,0.42282094,63839.0,63837.0,0.07832]
[1727247612059,0.51345755,63839.0,63838.0,0.078319]
[1727247612265,0.078319,63838.0,63837.0,0.1679701]
[1727247612473,0.07832,63837.0,63834.0,0.439923]
[1727247612670,0.07832,63837.0,63836.0,0.002]
[1727247612976,0.07832,63837.0,63836.0,0.19892721]
[1727247613177,0.07832,63837.0,63836.0,0.17443938]
[1727247613378,0.07832,63837.0,63836.0,0.17243938]
[1727247613769,0.07832,63837.0,63835.0,0.25737428]
[1727247614068,0.07832,63837.0,63834.0,0.36168]
[1727247614069,0.07832,63837.0,63836.0,0.080321]
[1727247614265,0.07832,63837.0,63836.0,0.25937328]
[1727247614572,0.07832,63837.0,63836.0,0.002]
[1727247614765,0.07832,63837.0,63836.0,0.18302574]
[1727247615372,0.07832,63837.0,63836.0,0.25442763]
[1727247615566,0.07832,63837.0,63836.0,0.25242763]
[1727247616479,0.07832,63837.0,63836.0,0.25442763]
[1727247616674,0.07832,63837.0,63836.0,0.20751334]
[1727247617176,0.14034094,63837.0,63836.0,0.20751334]
[1727247617370,0.14034094,63837.0,63836.0,0.18302574]
[1727247617574,0.07832,63837.0,63836.0,0.18302574]
[1727247618676,0.51744,63837.0,63836.0,0.18302574]
[1727247619675,1.78414753,63837.0,63836.0,0.002]
[1727247619873,1.69111611,63837.0,63836.0,0.002]
[1727247620074,0.07834,63821.0,63820.0,0.04691429]
[1727247620273,0.078341,63820.0,63819.0,0.04691429]
[1727247620469,0.06200632,63826.0,63822.0,0.17331208]
[1727247620679,0.06200632,63826.0,63818.0,0.04691429]
[1727247620866,0.06200632,63825.0,63817.0,0.0469248]
[1727247621073,0.14034232,63824.0,63823.0,0.17349445]
[1727247621279,0.06200632,63824.0,63814.0,0.0792248]
[1727247621480,0.3608,63820.0,63814.0,0.0323]
[1727247621682,0.3608,63820.0,63816.0,0.16507906]
[1727247621899,0.078346,63816.0,63815.0,0.16507906]
[1727247622070,0.078346,63816.0,63814.0,0.0323]
[1727247622474,0.078346,63816.0,63815.0,0.16507906]
[1727247623283,0.079346,63816.0,63815.0,0.16507906]
[1727247624590,0.0915153,63816.0,63815.0,0.16507906]
[1727247624889,0.0915153,63816.0,63815.0,0.17707906]
[1727247625680,0.001,63816.0,63815.0,0.25542606]
[1727247627180,0.001,63816.0,63815.0,0.64822606]
[1727247630488,0.001,63816.0,63815.0,0.70546363]
[1727247630675,0.001,63816.0,63815.0,0.69515086]
[1727247631081,0.001,63816.0,63815.0,0.705444]
[1727247631382,0.0036,63825.0,63824.0,0.078336]
[1727247631583,0.0036,63825.0,63815.0,1.6502922]
[1727247631584,0.078331,63828.0,63825.0,0.078335]
[1727247631885,0.078331,63828.0,63826.0,0.16595711]
[1727247632120,0.078331,63828.0,63827.0,0.078332]
[1727247632289,0.09037185,63828.0,63827.0,0.110932]
[1727247632491,0.09037185,63828.0,63827.0,0.27688911]
[1727247633291,0.09137185,63828.0,63827.0,0.28788911]
[1727247635181,0.01304085,63828.0,63827.0,0.46788911]
[1727247635489,0.001,63828.0,63827.0,0.46788911]
[1727247635682,0.001,63828.0,63827.0,0.49238016]
[1727247635988,0.001,63828.0,63827.0,0.49237966]
[1727247638786,0.001,63828.0,63827.0,0.49237911]
[1727247639013,0.001,63828.0,63827.0,0.46788911]
[1727247639188,0.001,63828.0,63827.0,0.49237908]
[1727247639692,0.001,63828.0,63827.0,0.31237908]
[1727247640592,0.001,63828.0,63827.0,0.28788911]
[1727247642598,0.3608,63832.0,63827.0,0.41404723]
[1727247642802,0.36216,63838.0,63827.0,0.41404723]
[1727247642803,0.07832,63838.0,63835.0,0.078322]
[1727247643300,0.3608,63843.0,63837.0,0.07832]
[1727247643490,0.078319,63838.0,63837.0,0.07832]
[1727247643893,0.078319,63838.0,63837.0,0.24661037]
[1727247645999,0.078319,63838.0,63837.0,0.24761037]
[1727247648390,0.078314,63842.0,63841.0,0.078314]
[1727247648586,0.07831,63846.0,63845.0,0.07831]
[1727247649095,0.07831,63846.0,63845.0,0.25210126]
[1727247649599,0.14031132,63849.0,63848.0,0.078305]
[1727247649794,0.078305,63849.0,63848.0,0.078305]
[1727247649997,0.078305,63849.0,63848.0,0.25483286]
[1727247650495,0.078305,63849.0,63848.0,0.17652786]
[1727247650796,0.0309,63852.0,63844.0,0.17620257]
[1727247651000,0.109205,63850.0,63847.0,0.078307]
[1727247651199,0.078311,63845.0,63843.0,0.078313]
[1727247651396,0.0309,63850.0,63843.0,0.078313]
[1727247651397,0.078311,63844.0,63843.0,0.078313]
[1727247651789,0.078311,63844.0,63843.0,0.24881088]
[1727247652804,0.078305,63849.0,63845.0,0.078309]
[1727247653104,0.078308,63847.0,63846.0,0.25589693]
[1727247653601,0.078308,63847.0,63846.0,0.078309]
[1727247653805,0.078308,63847.0,63846.0,0.2425391]
[1727247654693,0.3608,63850.0,63848.0,0.078306]
[1727247655091,0.439105,63850.0,63849.0,0.18011132]
[1727247655331,0.078305,63850.0,63849.0,0.25841632]
[1727247655696,0.078305,63850.0,63849.0,0.078305]
[1727247655999,0.078305,63850.0,63849.0,0.24975462]
[1727247656810,0.2471,63857.0,63853.0,0.0783]
[1727247656811,0.0783,63854.0,63853.0,0.0783]
[1727247657197,0.0783,63854.0,63853.0,0.25526056]
[1727247657506,0.0635,63857.0,63855.0,0.078298]
[1727247657695,0.439095,63858.0,63855.0,0.258298]
[1727247657895,0.439095,63858.0,63856.0,0.17342308]
[1727247658407,0.439095,63858.0,63856.0,0.25171908]
[1727247659207,0.443095,63858.0,63857.0,0.078296]
[1727247659407,0.082295,63858.0,63857.0,0.078296]
[1727247659608,0.082295,63858.0,63857.0,0.25648358]
[1727247659802,0.082295,63858.0,63857.0,0.17818758]
[1727247660003,0.443095,63858.0,63857.0,0.17818758]
[1727247660310,0.078299,63854.0,63853.0,0.0783]
[1727247660499,0.443094,63858.0,63857.0,0.17727589]
[1727247660702,0.078298,63855.0,63854.0,0.17716216]
[1727247660928,0.18,63857.0,63850.0,0.17716216]
[1727247661195,0.078313,63843.0,63842.0,0.00234942]
[1727247661696,0.078313,63843.0,63842.0,0.18267082]
[1727247662104,0.078309,63847.0,63842.0,0.26098482]
[1727247662614,0.078309,63846.0,63844.0,0.078311]
[1727247662999,0.0623,63850.0,63847.0,0.078307]
[1727247663305,0.50111032,63851.0,63845.0,0.18017898]
[1727247663306,0.00144,63851.0,63848.0,0.18]
[1727247663505,0.06200632,63857.0,63850.0,0.078303]
[1727247663805,0.439096,63857.0,63851.0,0.17831303]
[1727247663993,0.078298,63855.0,63853.0,0.439099]
[1727247664405,0.078298,63855.0,63854.0,0.17831303]
[1727247665616,0.080298,63855.0,63854.0,0.17831303]
[1727247667599,0.0783,63854.0,63850.0,0.078304]
[1727247667798,0.0783,63854.0,63851.0,0.078302]
[1727247667998,0.0783,63854.0,63851.0,0.25090177]
[1727247668199,0.0783,63854.0,63851.0,0.078302]
[1727247668397,0.078301,63853.0,63851.0,0.078302]
[1727247668595,0.078301,63853.0,63852.0,0.17259977]
[1727247669106,0.078301,63853.0,63852.0,0.25090177]
[1727247669510,0.078301,63853.0,63852.0,0.078302]
[1727247669900,0.078301,63853.0,63852.0,0.25938274]
[1727247671206,0.079301,63853.0,63852.0,0.25938274]
[1727247673301,0.079301,63853.0,63852.0,0.18108074]
[1727247673705,0.078303,63851.0,63850.0,0.078303]
[1727247674113,0.078303,63851.0,63850.0,0.25426722]
[1727247677710,0.078303,63851.0,63850.0,0.17596422]
[1727247678026,0.078304,63850.0,63849.0,0.22647595]
[1727247678221,0.078304,63850.0,63849.0,0.17962455]
[1727247678405,0.078304,63850.0,63849.0,0.078305]
[1727247678717,0.078304,63850.0,63849.0,0.25792955]
[1727247679115,0.078304,63850.0,63849.0,0.3048494]
[1727247680209,0.078304,63850.0,63849.0,0.3058494]
[1727247681334,0.078304,63850.0,63849.0,0.25892955]
[1727247681913,0.14030632,63853.0,63852.0,0.078302]
[1727247682118,0.06200632,63853.0,63852.0,0.078302]
[1727247682318,0.06200632,63853.0,63852.0,0.24227522]
[1727247682712,0.06200632,63854.0,63852.0,0.24227522]
[1727247682918,0.0783,63853.0,63852.0,0.24227522]
[1727247683626,0.4391,63853.0,63834.0,0.3608]
[1727247683825,0.3608,63844.0,63837.0,0.24366672]
[1727247684015,0.3608,63844.0,63838.0,0.24366672]
[1727247684325,0.3608,63844.0,63839.0,0.14743469]
[1727247684513,0.3608,63844.0,63840.0,0.10660648]
[1727247684712,0.3608,63844.0,63841.0,0.10660648]
[1727247684923,0.3608,63844.0,63843.0,0.18]
[1727247685119,0.3608,63844.0,63843.0,0.28279448]
[1727247685337,0.3608,63844.0,63843.0,1.51764607]
[1727247685714,0.3618,63844.0,63843.0,1.51764607]
[1727247686824,0.3618,63844.0,63843.0,1.59540627]
[1727247687124,0.3608,63844.0,63843.0,1.59540627]
[1727247687323,0.3618,63844.0,63843.0,1.60240627]
[1727247687911,0.3608,63844.0,63843.0,1.59540073]
[1727247688118,0.3608,63844.0,63843.0,1.60440073]
[1727247688119,0.3618,63844.0,63843.0,1.60440073]
[1727247688518,0.3618,63844.0,63843.0,1.68271373]
[1727247689426,0.3618,63844.0,63843.0,1.58047759]
[1727247689617,0.3608,63853.0,63852.0,0.078302]
[1727247690021,0.3608,63853.0,63852.0,0.24765568]
[1727247690331,0.4391,63853.0,63852.0,0.24765568]
[1727247691830,0.3608,63853.0,63852.0,0.24765568]
[1727247692032,0.3608,63853.0,63852.0,0.27213595]
[1727247692221,0.42280632,63853.0,63852.0,0.27213595]
[1727247692618,0.42280632,63853.0,63852.0,0.27213594]
[1727247693027,0.3608,63853.0,63852.0,0.27213594]
[1727247693224,0.42280632,63853.0,63852.0,0.27213594]
[1727247693436,0.3608,63853.0,63852.0,0.27213594]
[1727247696254,0.3608,63853.0,63852.0,0.24765568]
[1727247696536,0.3608,63853.0,63852.0,1.34197473]
[1727247696721,0.3608,63853.0,63852.0,1.381141]
[1727247698339,0.3608,63853.0,63852.0,1.501141]
[1727247698535,0.3608,63853.0,63852.0,0.901141]
[1727247698828,0.3608,63853.0,63852.0,1.501141]
[1727247699032,0.3608,63853.0,63852.0,0.901141]
[1727247699335,0.3608,63853.0,63852.0,1.501141]
[1727247699534,0.3608,63853.0,63852.0,0.901141]
[1727247699729,0.3608,63853.0,63852.0,1.501141]
[1727247700039,0.3608,63853.0,63852.0,0.901141]
[1727247700255,0.3608,63853.0,63852.0,1.501141]
[1727247700459,0.3608,63853.0,63852.0,1.50114051]
[1727247700740,0.439095,63858.0,63857.0,0.078296]
[1727247700942,0.439095,63858.0,63857.0,0.198296]
[1727247701144,0.439095,63858.0,63857.0,0.38929399]
[1727247701448,0.439095,63858.0,63857.0,0.36481521]
[1727247702543,0.444095,63858.0,63857.0,0.36481521]
[1727247702742,0.444095,63858.0,63857.0,0.3892941]
[1727247703354,0.444095,63858.0,63857.0,0.36481521]
[1727247703643,0.444095,63858.0,63857.0,0.38929399]
[1727247704041,0.444095,63858.0,63857.0,0.41377277]
[1727247704545,0.444095,63858.0,63857.0,0.43825155]
[1727247706939,0.444095,63858.0,63857.0,0.41377277]
[1727247707339,0.444095,63858.0,63857.0,0.43825155]
[1727247708544,0.444095,63858.0,63857.0,0.35995555]
[1727247709131,0.444095,63858.0,63857.0,0.23995555]
[1727247709532,0.64239,63858.0,63857.0,0.23995555]
[1727247709747,0.64239,63858.0,63857.0,0.16557677]
[1727247709940,0.7198979,63858.0,63857.0,0.16557677]
[1727247710444,0.64239,63858.0,63857.0,0.16557677]
[1727247710946,0.72000726,63858.0,63857.0,0.16557677]
[1727247711352,0.60000726,63858.0,63857.0,0.16557677]
[1727247712438,0.52171226,63858.0,63857.0,0.16557677]
[1727247713047,0.444095,63858.0,63857.0,0.16557677]
[1727247713438,0.52171226,63858.0,63857.0,0.16557677]
[1727247713740,0.444095,63858.0,63857.0,0.16557677]
[1727247714747,0.444095,63858.0,63857.0,0.14109799]
[1727247716970,0.444095,63858.0,63857.0,0.11661921]
[1727247717246,0.444095,63858.0,63857.0,0.14109882]
[1727247718649,0.46947936,63858.0,63857.0,0.14109882]
[1727247722550,0.54777436,63858.0,63857.0,0.14109882]
[1727247722944,0.54777436,63858.0,63857.0,0.11661921]
[1727247723254,0.54777436,63858.0,63857.0,0.14110034]
[1727247725142,0.66777436,63858.0,63857.0,0.14110034]
[1727247725349,0.66777462,63858.0,63857.0,0.14110034]
[1727247726960,0.54777462,63858.0,63857.0,0.14110034]
[1727247727253,0.46947962,63858.0,63857.0,0.14110034]
[1727247728552,0.46947964,63858.0,63857.0,0.14110034]
[1727247729052,0.39118464,63858.0,63857.0,0.26110034]
[1727247729256,0.444094,63858.0,63857.0,0.1655801]
[1727247729579,1.592188,63858.0,63857.0,0.14109897]
[1727247729745,1.69586747,63858.0,63857.0,0.09019879]
[1727247730060,1.69586747,63858.0,63844.0,0.00234912]
[1727247730061,0.07831,63845.0,63844.0,0.00234912]
[1727247730261,0.078321,63836.0,63835.0,0.07822232]
[1727247730550,0.078321,63836.0,63835.0,0.0244894]
[1727247730551,0.3608,63836.0,63835.0,0.0244894]
[1727247730752,1.61279591,63836.0,63835.0,0.206138]
[1727247730955,1.61279591,63836.0,63818.0,0.17442232]
[1727247730956,0.078336,63824.0,63818.0,0.0638]
[1727247731154,0.3608,63823.0,63818.0,0.0638]
[1727247731349,0.3608,63823.0,63822.0,0.02684227]
[1727247731550,0.3608,63823.0,63822.0,0.19011716]
[1727247732262,0.078336,63824.0,63822.0,0.19011716]
[1727247732454,0.078336,63824.0,63823.0,0.02449261]
[1727247732651,0.439136,63824.0,63823.0,0.02449261]
[1727247732851,0.079336,63824.0,63823.0,0.19278243]
[1727247733056,0.440136,63824.0,63823.0,0.19278243]
[1727247733255,0.440136,63824.0,63823.0,0.16828982]
[1727247733458,0.439136,63824.0,63823.0,0.16828982]
[1727247733651,0.440136,63824.0,63823.0,0.17728982]
[1727247737649,0.3618,63824.0,63823.0,0.17728982]
[1727247740262,0.3618,63824.0,63823.0,0.1781563]
[1727247740664,0.3618,63824.0,63821.0,0.18]
[1727247740862,0.3618,63824.0,63822.0,0.1781563]
[1727247741867,0.3608,63824.0,63822.0,0.1781563]
[1727247742164,0.3618,63824.0,63822.0,0.1781563]
[1727247742763,0.3618,63824.0,63822.0,0.1791563]
[1727247743973,0.078337,63823.0,63822.0,0.1791563]
[1727247744151,0.3618,63824.0,63823.0,0.078337]
[1727247744667,0.3618,63824.0,63823.0,0.24399342]
[1727247745567,0.3608,63824.0,63823.0,0.24399342]
[1727247746686,0.3618,63824.0,63823.0,0.24499342]
[1727247747168,0.001,63824.0,63823.0,0.24499342]
[1727247749370,0.001,63824.0,63823.0,0.32333042]
[1727247749559,0.3608,63833.0,63831.0,0.078327]
[1727247749866,0.3608,63833.0,63832.0,0.078326]
[1727247750188,0.3608,63833.0,63832.0,0.24643083]
[1727247752264,0.3618,63833.0,63832.0,0.24843083]
[1727247753067,0.3608,63833.0,63832.0,0.24643083]
[1727247753270,0.3618,63833.0,63832.0,0.24943083]
[1727247754375,0.3618,63833.0,63832.0,0.32775683]
[1727247756873,0.001,63833.0,63832.0,0.32775683]
[1727247758376,0.001,63833.0,63832.0,0.44775683]
[1727247763978,0.08036849,63842.0,63841.0,0.078315]
[1727247764169,0.08036849,63842.0,63838.0,0.078318]
[1727247764170,0.04656849,63844.0,63839.0,0.12]
[1727247764369,0.3608,63845.0,63844.0,0.12]
[1727247764570,0.3608,63845.0,63844.0,0.276622]
[1727247764871,0.03285021,63849.0,63848.0,0.078307]
[1727247765067,0.03285021,63849.0,63848.0,0.276614]
[1727247765068,0.00235021,63849.0,63848.0,0.276614]
[1727247765270,0.00235021,63849.0,63848.0,0.45183369]
[1727247766271,0.00235021,63849.0,63848.0,0.51183369]
[1727247766671,0.009,63849.0,63848.0,0.51183369]
[1727247767782,0.009,63849.0,63848.0,0.43352669]
[1727247768575,0.009,63849.0,63848.0,0.51183369]
[1727247776084,0.009,63849.0,63848.0,0.87263369]
[1727247784389,0.009,63849.0,63848.0,0.95094069]
[1727247785882,0.0305,63858.0,63857.0,0.156592]
[1727247786083,0.0305,63858.0,63857.0,0.336592]
[1727247786292,0.0305,63858.0,63857.0,0.4448845]
[1727247787487,0.0305,63858.0,63857.0,0.8056845]
[1727247787685,0.0445,63858.0,63857.0,0.8056845]
[1727247790801,0.0445,63858.0,63857.0,0.6073885]
[1727247790985,0.0355,63858.0,63857.0,0.7283885]
[1727247792996,0.3963,63858.0,63857.0,0.2475885]
[1727247793297,0.44286849,63858.0,63857.0,0.2475885]
[1727247793497,0.45839132,63858.0,63857.0,0.2475885]
[1727247793721,0.53668532,63858.0,63857.0,0.1692925]
[1727247793903,1.544394,63858.0,63857.0,0.1692925]
[1727247794195,1.62200815,63858.0,63857.0,0.1692925]
[1727247794504,1.56977835,63858.0,63857.0,0.1692925]
[1727247794999,1.56977835,63858.0,63857.0,0.0694925]
[1727247795596,1.56977835,63858.0,63857.0,0.0674925]
[1727247795795,1.64807235,63858.0,63857.0,0.001]
[1727247798306,1.74122402,63858.0,63857.0,0.001]
[1727247800305,1.64807235,63858.0,63857.0,0.001]
[1727247800912,2.00887235,63858.0,63857.0,0.001]
[1727247801501,2.10198871,63858.0,63857.0,0.001]
[1727247802610,2.00887235,63858.0,63857.0,0.001]
[1727247803108,1.40887235,63858.0,63857.0,0.001]
[1727247803332,1.383488,63858.0,63857.0,0.001]
[1727247803504,1.46106718,63858.0,63857.0,0.001]
[1727247803708,1.40887353,63858.0,63857.0,0.001]
[1727247804106,1.383488,63858.0,63857.0,0.001]
[1727247804301,1.46106529,63858.0,63857.0,0.001]
[1727247804915,1.383488,63858.0,63857.0,0.001]
[1727247806715,0.913688,63858.0,63857.0,0.17372819]
[1727247807414,0.913688,63858.0,63857.0,0.29372819]
[1727247808020,0.7266,63858.0,63857.0,0.29372819]
[1727247808314,0.7266,63858.0,63857.0,0.31820806]
[1727247808499,0.77314291,63858.0,63857.0,0.39650406]
[1727247809515,0.77314291,63858.0,63857.0,0.39650379]
[1727247811411,0.41234291,63858.0,63857.0,0.39650379]
[1727247812717,0.41234291,63858.0,63857.0,0.31820779]
[1727247812927,0.444094,63858.0,63857.0,0.31820779]
[1727247813336,0.444094,63858.0,63857.0,0.29372819]
[1727247814915,0.444094,63858.0,63857.0,0.17372819]
[1727247816714,1.66976529,63858.0,63857.0,0.001]
[1727247817022,1.64957377,63858.0,63857.0,0.001]
[1727247818419,0.57977377,63858.0,63857.0,0.001]
[1727247819421,1.04957377,63858.0,63857.0,0.001]
[1727247819625,0.57977377,63858.0,63857.0,0.1734208]
[1727247820308,1.04957377,63858.0,63857.0,0.1734208]
[1727247820516,1.14269013,63858.0,63857.0,0.1734208]
[1727247821124,0.57977377,63858.0,63857.0,0.1734208]
[1727247821325,0.67289013,63858.0,63857.0,0.1734208]
[1727247822323,0.31209013,63858.0,63857.0,0.1734208]
[1727247822524,0.94057377,63858.0,63857.0,0.1734208]
[1727247824416,0.94057377,63858.0,63857.0,0.0923428]
[1727247824417,2.10365794,63858.0,63857.0,0.0923428]
[1727247824621,2.10365794,63858.0,63841.0,0.078315]
[1727247824622,0.156616,63847.0,63846.0,0.0321]
[1727247824827,1.02360177,63847.0,63846.0,0.0321]
[1727247825018,1.02360683,63847.0,63846.0,0.19540602]
[1727247825319,1.02360683,63847.0,63846.0,0.0321]
[1727247825926,1.02460683,63847.0,63846.0,0.0371]
[1727247826319,1.17780767,63847.0,63846.0,0.0371]
[1727247827820,0.45620767,63847.0,63846.0,0.0371]
[1727247828018,1.17780767,63847.0,63846.0,0.0371]
[1727247828523,1.08960683,63847.0,63846.0,0.0331]
[1727247830728,0.90960683,63847.0,63846.0,0.0331]
[1727247831029,0.96182411,63847.0,63846.0,0.0331]
[1727247831925,0.884216,63847.0,63846.0,0.0331]
[1727247832125,0.805908,63847.0,63846.0,0.0331]
[1727247832325,0.805908,63847.0,63846.0,0.19693746]
[1727247833032,0.86797431,63847.0,63846.0,0.19693746]
[1727247833329,0.86797431,63847.0,63846.0,0.2997313]
[1727247834528,0.805908,63847.0,63846.0,0.2997313]
[1727247834922,0.3668,63847.0,63846.0,0.2997313]
[1727247835125,0.3668,63847.0,63846.0,0.27524646]
[1727247835126,0.3634434,63847.0,63846.0,0.27524646]
[1727247835443,0.3169,63847.0,63846.0,0.27524646]
[1727247835830,0.3169,63847.0,63846.0,0.29973026]
[1727247836025,0.3634434,63847.0,63846.0,0.29973026]
[1727247836731,0.4073434,63847.0,63846.0,0.29973026]
[1727247837835,0.3608,63847.0,63846.0,0.29973026]
[1727247841239,0.3608,63847.0,63846.0,0.29973024]
[1727247841544,0.4856514,63847.0,63846.0,0.29973024]
[1727247841930,0.439108,63847.0,63846.0,0.29973024]
[1727247845336,0.06206631,63848.0,63847.0,0.078308]
[1727247845639,0.09680084,63857.0,63847.0,0.078308]
[1727247845640,0.0036,63857.0,63848.0,0.46988]
[1727247845846,0.0036,63860.0,63859.0,0.078293]
[1727247846033,0.3608,63867.0,63859.0,0.02448378]
[1727247846230,0.3608,63867.0,63866.0,0.078284]
[1727247846547,0.3608,63867.0,63866.0,0.25027416]
[1727247847849,0.3608,63867.0,63866.0,0.27474986]
[1727247848253,0.3608,63867.0,63866.0,0.27474935]
[1727247848439,0.3608,63867.0,63866.0,0.30584935]
[1727247848644,0.3708,63867.0,63866.0,0.33844935]
[1727247849035,0.3209,63867.0,63866.0,0.33844935]
[1727247850148,0.01,63867.0,63866.0,0.69924935]
[1727247850346,0.0036,63877.0,63866.0,0.62096535]
[1727247850648,0.3608,63879.0,63878.0,0.07827]
[1727247851038,0.3608,63879.0,63878.0,0.25210864]
[1727247852342,0.3708,63879.0,63878.0,0.25310864]
[1727247855049,0.3708,63879.0,63878.0,0.17483864]
[1727247855239,0.449069,63879.0,63878.0,0.17483864]
[1727247859052,0.449069,63879.0,63878.0,0.12493864]
[1727247859251,0.527338,63879.0,63878.0,0.12493864]
[1727247867256,0.449069,63879.0,63878.0,0.20320864]
[1727247869252,0.3708,63879.0,63878.0,0.20320864]
[1727247878067,0.44840811,63879.0,63878.0,0.20320864]
[1727247878769,0.3708,63879.0,63878.0,0.20320864]
[1727247879166,0.449069,63879.0,63878.0,0.20320864]
[1727247879369,0.52667711,63879.0,63878.0,0.20320864]
[1727247879667,0.449069,63879.0,63878.0,0.20320864]
[1727247879865,0.52667711,63879.0,63878.0,0.20320864]
[1727247880258,0.449069,63879.0,63878.0,0.20320864]
[1727247880460,0.52667711,63879.0,63878.0,0.20320864]
[1727247880767,0.449069,63879.0,63878.0,0.20320864]
[1727247880972,0.52667711,63879.0,63878.0,0.20320864]
[1727247881962,0.52667711,63879.0,63878.0,0.12493864]
[1727247882181,0.449069,63879.0,63878.0,0.12493864]
[1727247882566,0.449069,63879.0,63878.0,0.20320864]
[1727247883571,0.52689207,63879.0,63878.0,0.12493864]